fUST/lending_fUST_20241111
["ID","MTS","AMOUNT","RATE_DAILY","PERIOD"]
[341971748,1731337849803,-500.0,0.00024931,2]
[341971749,1731337849813,-863.86,0.00024931,2]
[341971750,1731337849823,-500.0,0.00024931,2]
[341971751,1731337849832,-969.67,0.00024931,2]
[341971752,1731337849841,-500.0,0.00024931,2]
[341971753,1731337849851,-500.0,0.00024931,2]
[341971754,1731337849860,-500.0,0.00024931,2]
[341971755,1731337849869,-500.0,0.00024931,2]
[341971756,1731337849879,-500.0,0.00024931,2]
[341971757,1731337849888,-1850.91,0.00024931,2]
[341971758,1731337849897,-390.85501314,0.00024931,2]
[341971759,1731337849906,-500.0,0.00024931,2]
[341971760,1731337849916,-500.0,0.00024931,2]
[341971761,1731337849925,-500.0,0.00024931,2]
[341971762,1731337849934,-500.0,0.00024931,2]
[341971763,1731337849944,-500.0,0.00024931,2]
[341971764,1731337849953,-1286.76,0.00024931,2]
[341971765,1731337849963,-500.0,0.00024931,2]
[341971766,1731337849972,-500.0,0.00024931,2]
[341971767,1731337849981,-500.0,0.00024931,2]
[341971768,1731337849993,-4402.63,0.00024931,2]
[341971769,1731337850002,-502.49023562,0.00024931,2]
[341971770,1731337850012,-783.87,0.00024931,2]
[341971771,1731337850021,-1281.14,0.00024931,2]
[341971772,1731337850031,-500.0,0.00024931,2]
[341971773,1731337850041,-555.05146295,0.00024931,2]
[341971774,1731337850050,-550.1,0.00024931,2]
[341971775,1731337850060,-500.0,0.00024931,2]
[341971776,1731337850071,-500.0,0.00024931,2]
[341971777,1731337850081,-500.0,0.00024931,2]
[341971778,1731337850096,-500.0,0.00024931,2]
[341971779,1731337850105,-500.0,0.00024931,2]
[341971780,1731337850115,-500.0,0.00024931,2]
[341971781,1731337850124,-15948.93,0.00024931,2]
[341971782,1731337850134,-500.0,0.00024931,2]
[341971783,1731337850143,-500.0,0.00024931,2]
[341971784,1731337850153,-500.0,0.00024931,2]
[341971785,1731337850166,-500.0,0.00024931,2]
[341971786,1731337850177,-500.0,0.00024931,2]
[341971787,1731337850186,-701.53,0.00024931,2]
[341971788,1731337850196,-1526.52,0.00024931,2]
[341971789,1731337850205,-1364.86,0.00024931,2]
[341971790,1731337850214,-500.0,0.00024931,2]
[341971791,1731337850224,-500.0,0.00024931,2]
[341971792,1731337850233,-500.0,0.00024931,2]
[341971793,1731337850249,-500.0,0.00024931,2]
[341971794,1731337850262,-500.0,0.00024931,2]
[341971795,1731337850272,-500.0,0.00024931,2]
[341971796,1731337850282,-3372.57,0.00024931,2]
[341971797,1731337850366,-862.29,0.00024931,2]
[341971798,1731337850387,-500.0,0.00024931,2]
[341971799,1731337850397,-647.65,0.00024931,2]
[341971800,1731337850407,-500.0,0.00024931,2]
[341971801,1731337850417,-500.0,0.00024931,2]
[341971802,1731337850427,-500.0,0.00024931,2]
[341971803,1731337850437,-934.29,0.00024931,2]
[341971804,1731337850446,-500.0,0.00024931,2]
[341971805,1731337850456,-894.26,0.00024931,2]
[341971806,1731337850465,-472.62941322,0.00024931,2]
[341971807,1731337850475,-500.0,0.00024931,2]
[341971808,1731337850484,-903.41,0.00024931,2]
[341971809,1731337850497,-500.0,0.00024931,2]
[341971810,1731337850506,-1926.8,0.00024931,2]
[341971811,1731337850516,-500.0,0.00024931,2]
[341971812,1731337850525,-500.0,0.00024931,2]
[341971813,1731337850534,-609.03,0.00024931,2]
[341971814,1731337850544,-521.14,0.00024931,2]
[341971815,1731337850553,-500.0,0.00024931,2]
[341971816,1731337850562,-1316.24,0.00024931,2]
[341971817,1731337850572,-500.0,0.00024931,2]
[341971818,1731337850581,-1770.76,0.00024931,2]
[341971819,1731337850591,-637.38,0.00024931,2]
[341971820,1731337850600,-500.0,0.00024931,2]
[341971821,1731337850609,-500.0,0.00024931,2]
[341971822,1731337850619,-537.68,0.00024931,2]
[341971823,1731337850628,-1639.09,0.00024931,2]
[341971824,1731337850637,-506.01386634,0.00024931,2]
[341971825,1731337850646,-500.0,0.00024931,2]
[341971826,1731337850655,-500.0,0.00024931,2]
[341971827,1731337850664,-500.0,0.00024931,2]
[341971828,1731337850673,-767.62,0.00024931,2]
[341971829,1731337850682,-753.64,0.00024931,2]
[341971830,1731337850691,-500.0,0.00024931,2]
[341971831,1731337850700,-500.0,0.00024931,2]
[341971832,1731337850709,-500.0,0.00024931,2]
[341971833,1731337850719,-3395.95,0.00024931,2]
[341971834,1731337850728,-500.0,0.00024931,2]
[341971835,1731337850740,-500.0,0.00024931,2]
[341971836,1731337850749,-500.0,0.00024931,2]
[341971837,1731337850759,-151.0,0.00024931,7]
[341971838,1731337850768,-337.25884381,0.00024931,2]
[341971839,1731337850777,-5876.07,0.00024931,2]
[341971840,1731337850786,-500.0,0.00024931,2]
[341971841,1731337850795,-500.0,0.00024931,2]
[341971842,1731337850805,-1259.38,0.00024931,2]
[341971843,1731337850814,-1717.84,0.00024931,2]
[341971844,1731337850824,-889.17,0.00024931,2]
[341971845,1731337850833,-500.0,0.00024931,2]
[341971846,1731337850842,-500.0,0.00024931,2]
[341971847,1731337850851,-1136.66,0.00024931,2]
[341971848,1731337850860,-500.0,0.00024931,2]
[341971849,1731337850871,-864.85,0.00024931,2]
[341971850,1731337850880,-170.90932347,0.00024931,2]
[341971851,1731337850889,-500.0,0.00024931,2]
[341971852,1731337850898,-500.0,0.00024931,2]
[341971853,1731337850908,-333.62812275,0.00024968,2]
[341971854,1731337850918,-358.65885393,0.00024973,2]
[341971855,1731337850927,-500.0,0.00024973,2]
[341971856,1731337850937,-500.0,0.00024973,2]
[341971857,1731337850945,-508.36666734,0.00024973,2]
[341971858,1731337850955,-500.0,0.00024973,2]
[341971859,1731337850965,-502.39726261,0.00024973,2]
[341971860,1731337850974,-500.0,0.00024973,2]
[341971861,1731337850983,-503.79710037,0.00024973,2]
[341971862,1731337850995,-500.0,0.00024973,2]
[341971863,1731337851004,-482.26528729,0.00024973,2]
[341971864,1731337851014,-4253.0,0.00024992,4]
[341971865,1731337851023,-2000.0,0.00025,10]
[341971866,1731337851032,-1000.0,0.00025,2]
[341971867,1731337851042,-2150.77,0.00025031,2]
[341971868,1731337851052,-2150.77,0.00025031,2]
[341971869,1731337851061,-2150.77,0.00025031,2]
[341971870,1731337851070,-2150.77,0.00025031,2]
[341971871,1731337851080,-2150.80086066,0.00025031,2]
[341971872,1731337851093,-8101.43574883,0.00025031,2]
[341971873,1731337851103,-14984.98393801,0.0002509,2]
[341971874,1731337907302,159.236518,0.00013973,2]
[341971878,1731338112033,14000.0,0.00016,4]
[341971892,1731338211366,215.1056975,0.00027,60]
[341971893,1731338254410,527.0,0.00027,60]
[341971896,1731338648898,159.236518,0.00013973,2]
[341971897,1731338736439,53224.1060135,0.0001,2]
[341971898,1731338827097,-1169.27083333,0.0002091,2]
[341971899,1731338827120,-163.332811,0.00022518,2]
[341971900,1731338827142,-913.533145,0.00022888,2]
[341971901,1731338827165,-48.63195094,0.00023573,2]
[341971902,1731338827195,-864.90119406,0.00023573,2]
[341971903,1731338827216,-201.40274455,0.00023603,2]
[341971904,1731338828151,-1034.12616188,0.00023603,2]
[341971906,1731338852217,-437.86341619,0.00020976,2]
[341971907,1731338854124,-731.40741714,0.00020976,2]
[341971908,1731338854149,-248.96547069,0.00023603,2]
[341971910,1731338947092,-1129.64871754,0.00020976,2]
[341971927,1731338969104,-1169.27083333,0.00020963,2]
[341971928,1731338969126,-6218.69436667,0.00022946,2]
[341971982,1731339032147,-180.52601873,0.00022946,2]
[341971984,1731339032156,-210.77330146,0.00023898,6]
[341971986,1731339032166,-2430.50241858,0.00023898,2]
[341971988,1731339032175,-337.52,0.00023989,3]
[341971989,1731339032184,-168.76,0.00023989,3]
[341971991,1731339032194,-506.28,0.00023989,3]
[341971992,1731339032209,-300.0,0.00023996,2]
[341971993,1731339032218,-300.0,0.00023996,2]
[341971995,1731339032228,-1623.19,0.00023997,2]
[341971997,1731339032238,-1502.5,0.00023997,2]
[341971999,1731339032249,-500.0,0.00023997,2]
[341972000,1731339032258,-500.0,0.00023997,2]
[341972001,1731339032268,-500.0,0.00023997,2]
[341972002,1731339032278,-815.08,0.00023997,2]
[341972003,1731339032288,-960.97493513,0.00023998,2]
[341972004,1731339032299,-5386.4,0.00023998,2]
[341972005,1731339032308,-196.34345981,0.00023998,2]
[341972006,1731339032448,-303.65654019,0.00023998,2]
[341972007,1731339032473,-500.0,0.00023998,2]
[341972008,1731339032485,-500.0,0.00023998,2]
[341972009,1731339032495,-14619.85,0.00023998,2]
[341972010,1731339032504,-643.07,0.00023998,2]
[341972011,1731339032513,-1204.15360393,0.00023998,2]
[341972012,1731339032526,-46.96639607,0.00023998,2]
[341972013,1731339032535,-593.67,0.00023998,2]
[341972014,1731339032544,-500.0,0.00023998,2]
[341972015,1731339032553,-1477.9212858,0.00023998,2]
[341972079,1731339043280,-1169.27083333,0.00023898,2]
[341972080,1731339043290,-5161.97,0.00023997,2]
[341972081,1731339043300,-288.3187142,0.00023998,2]
[341972082,1731339043309,-500.0,0.00023998,2]
[341972083,1731339043319,-1206.56,0.00023998,2]
[341972084,1731339043328,-500.0,0.00023998,2]
[341972085,1731339043337,-500.0,0.00023998,2]
[341972086,1731339043346,-690.83,0.00023998,2]
[341972087,1731339043355,-500.0,0.00023998,2]
[341972088,1731339043364,-703.65,0.00023998,2]
[341972089,1731339043373,-500.0,0.00023998,2]
[341972090,1731339043382,-500.0,0.00023998,2]
[341972091,1731339043392,-500.0,0.00023998,2]
[341972092,1731339043402,-1574.69,0.00023998,2]
[341972093,1731339043411,-500.0,0.00023999,2]
[341972094,1731339043421,-500.0,0.00023999,2]
[341972095,1731339043430,-500.0,0.00023999,2]
[341972096,1731339043441,-500.0,0.00023999,2]
[341972097,1731339043451,-500.0,0.00023999,2]
[341972098,1731339043465,-500.0,0.00023999,2]
[341972099,1731339043476,-500.0,0.00023999,2]
[341972100,1731339043487,-500.0,0.00023999,2]
[341972101,1731339043497,-620.39359599,0.00023999,2]
[341972102,1731339043506,-270.77379515,0.00023999,2]
[341972103,1731339043516,-500.0,0.00023999,2]
[341972104,1731339043526,-176.3564931,0.00023999,2]
[341972105,1731339043535,-500.0,0.00023999,2]
[341972108,1731339043671,-500.0,0.00023999,2]
[341972109,1731339043682,-500.0,0.00023999,2]
[341972110,1731339043692,-500.0,0.00023999,2]
[341972111,1731339043701,-500.0,0.00023999,2]
[341972112,1731339043714,-500.0,0.00023999,2]
[341972113,1731339043724,-500.0,0.00023999,2]
[341972114,1731339043733,-414.80769656,0.00023999,2]
[341972115,1731339043743,-500.0,0.00023999,2]
[341972116,1731339043752,-500.0,0.00023999,2]
[341972117,1731339043762,-500.0,0.00023999,2]
[341972118,1731339043771,-303.01775111,0.00023999,2]
[341972119,1731339043780,-559.58282364,0.00023999,2]
[341972120,1731339043789,-500.0,0.00023999,2]
[341972121,1731339043799,-500.0,0.00023999,2]
[341972122,1731339043808,-500.0,0.00023999,2]
[341972123,1731339043817,-500.0,0.00023999,2]
[341972124,1731339043827,-500.0,0.00023999,2]
[341972125,1731339043836,-500.0,0.00023999,2]
[341972126,1731339043846,-500.0,0.00023999,2]
[341972127,1731339043855,-500.0,0.00023999,2]
[341972128,1731339043866,-500.0,0.00023999,2]
[341972129,1731339043875,-500.0,0.00023999,2]
[341972130,1731339043885,-500.0,0.00023999,2]
[341972131,1731339043894,-500.0,0.00023999,2]
[341972132,1731339043904,-500.0,0.00023999,2]
[341972133,1731339043914,-500.0,0.00023999,2]
[341972134,1731339043924,-500.0,0.00023999,2]
[341972135,1731339043934,-500.0,0.00023999,2]
[341972136,1731339043944,-500.0,0.00023999,2]
[341972137,1731339043954,-500.0,0.00023999,2]
[341972138,1731339043965,-500.0,0.00023999,2]
[341972139,1731339043975,-500.0,0.00023999,2]
[341972140,1731339043984,-500.0,0.00023999,2]
[341972141,1731339043994,-500.0,0.00023999,2]
[341972142,1731339044004,-500.0,0.00023999,2]
[341972143,1731339044013,-482.30588928,0.00023999,2]
[341972144,1731339044024,-500.0,0.00023999,2]
[341972145,1731339044033,-500.0,0.00023999,2]
[341972146,1731339044043,-500.0,0.00023999,2]
[341972147,1731339044053,-500.0,0.00023999,2]
[341972148,1731339044062,-500.0,0.00023999,2]
[341972149,1731339044071,-500.0,0.00023999,2]
[341972150,1731339044082,-500.0,0.00023999,2]
[341972151,1731339044091,-500.0,0.00023999,2]
[341972152,1731339044101,-500.0,0.00023999,2]
[341972153,1731339044110,-500.0,0.00023999,2]
[341972154,1731339044120,-500.0,0.00023999,2]
[341972155,1731339044129,-500.0,0.00023999,2]
[341972156,1731339044139,-624.95472624,0.00023999,2]
[341972157,1731339044148,-500.0,0.00023999,2]
[341972158,1731339044157,-537.86847842,0.00023999,2]
[341972159,1731339044167,-500.0,0.00023999,2]
[341972160,1731339044176,-500.0,0.00023999,2]
[341972161,1731339044186,-500.0,0.00023999,2]
[341972162,1731339044195,-295.22038346,0.00023999,2]
[341972163,1731339044212,-204.77961654,0.00023999,2]
[341972164,1731339044221,-500.0,0.00023999,2]
[341972165,1731339044231,-500.0,0.00023999,2]
[341972166,1731339044240,-500.0,0.00023999,2]
[341972167,1731339044250,-500.0,0.00023999,2]
[341972168,1731339044260,-2743.99953916,0.00023999,2]
[341972169,1731339044277,-1322.65046084,0.00023999,2]
[341972170,1731339044287,-500.0,0.00023999,2]
[341972171,1731339044297,-500.0,0.00023999,2]
[341972172,1731339044306,-500.0,0.00023999,2]
[341972173,1731339044316,-500.0,0.00023999,2]
[341972174,1731339044326,-500.0,0.00023999,2]
[341972175,1731339044336,-1174.38,0.00023999,2]
[341972176,1731339044346,-500.0,0.00023999,2]
[341972177,1731339044355,-500.0,0.00023999,2]
[341972178,1731339044365,-500.0,0.00023999,2]
[341972179,1731339044375,-500.0,0.00023999,2]
[341972180,1731339044385,-500.0,0.00023999,2]
[341972181,1731339044395,-500.0,0.00023999,2]
[341972182,1731339044404,-500.0,0.00023999,2]
[341972183,1731339044413,-500.0,0.00023999,2]
[341972184,1731339044423,-486.88918617,0.00023999,2]
[341972185,1731339044433,-504.25,0.00023999,2]
[341972186,1731339044443,-500.0,0.00023999,2]
[341972187,1731339044452,-233.03493278,0.00023999,2]
[341972188,1731339044466,-500.0,0.00023999,2]
[341972189,1731339044478,-500.0,0.00023999,2]
[341972190,1731339044496,-500.0,0.00023999,2]
[341972191,1731339044511,-500.0,0.00023999,2]
[341972192,1731339044522,-500.0,0.00023999,2]
[341972193,1731339044531,-1399.31,0.00023999,2]
[341972194,1731339044541,-500.0,0.00023999,2]
[341972195,1731339044551,-500.0,0.00023999,2]
[341972196,1731339044560,-790.44,0.00023999,2]
[341972197,1731339044570,-500.0,0.00023999,2]
[341972198,1731339044579,-502.23758773,0.00023999,2]
[341972199,1731339044589,-500.0,0.00023999,2]
[341972200,1731339044599,-500.0,0.00023999,2]
[341972201,1731339044608,-856.44,0.00023999,2]
[341972202,1731339044618,-819.74,0.00023999,2]
[341972203,1731339044628,-828.12,0.00023999,2]
[341972204,1731339044637,-140.03526562,0.00023999,2]
[341972205,1731339044649,-418.23473438,0.00023999,2]
[341972206,1731339044659,-113.63354879,0.00023999,2]
[341972207,1731339044678,-386.36645121,0.00023999,2]
[341972208,1731339044687,-584.27,0.00023999,2]
[341972209,1731339044697,-500.0,0.00023999,2]
[341972210,1731339044707,-500.0,0.00023999,2]
[341972211,1731339044719,-500.0,0.00023999,2]
[341972212,1731339044729,-500.0,0.00023999,2]
[341972213,1731339044739,-500.0,0.00023999,2]
[341972214,1731339044748,-3112.96,0.00023999,2]
[341972215,1731339044757,-500.0,0.00023999,2]
[341972216,1731339044766,-1154.43,0.00023999,2]
[341972217,1731339044775,-1041.94,0.00023999,2]
[341972218,1731339044784,-792.78,0.00023999,2]
[341972219,1731339044794,-500.0,0.00023999,2]
[341972220,1731339044803,-551.30471963,0.00023999,2]
[341972221,1731339044813,-94065.110731,0.00024,2]
[341972222,1731339044823,-235.71295676,0.00024158,2]
[341972223,1731339044833,-913.533145,0.00024258,2]
[341972224,1731339044844,-1623.19,0.00024271,2]
[341972225,1731339044853,-1502.5,0.00024271,2]
[341972226,1731339044863,-500.0,0.00024271,2]
[341972227,1731339044872,-536.89366596,0.00024271,2]
[341972228,1731339044882,-500.0,0.00024271,2]
[341972229,1731339044891,-815.08,0.00024271,2]
[341972230,1731339044901,-5161.97,0.00024271,2]
[341972231,1731339044911,-500.0,0.00024272,2]
[341972232,1731339044921,-500.0,0.00024272,2]
[341972233,1731339044931,-500.0,0.00024272,2]
[341972234,1731339044941,-14619.85,0.00024272,2]
[341972235,1731339044950,-643.07,0.00024272,2]
[341972236,1731339044962,-1251.12,0.00024272,2]
[341972237,1731339044971,-593.67,0.00024272,2]
[341972238,1731339044980,-500.0,0.00024272,2]
[341972239,1731339044989,-1766.24,0.00024272,2]
[341972240,1731339044999,-500.0,0.00024272,2]
[341972241,1731339045008,-1206.56,0.00024272,2]
[341972242,1731339045019,-500.0,0.00024272,2]
[341972243,1731339045028,-500.0,0.00024272,2]
[341972244,1731339045038,-690.83,0.00024272,2]
[341972245,1731339045048,-500.0,0.00024272,2]
[341972246,1731339045058,-703.65,0.00024272,2]
[341972247,1731339045068,-500.0,0.00024272,2]
[341972248,1731339045079,-500.0,0.00024272,2]
[341972249,1731339045089,-500.0,0.00024272,2]
[341972250,1731339045100,-1574.69,0.00024272,2]
[341972251,1731339045109,-500.0,0.00024273,2]
[341972252,1731339045119,-500.0,0.00024273,2]
[341972253,1731339045130,-500.0,0.00024273,2]
[341972254,1731339045141,-500.0,0.00024273,2]
[341972255,1731339045150,-500.0,0.00024273,2]
[341972256,1731339045159,-500.0,0.00024273,2]
[341972257,1731339045169,-500.0,0.00024273,2]
[341972258,1731339045178,-500.0,0.00024273,2]
[341972259,1731339045188,-267.60359206,0.00024273,2]
[341972260,1731339045197,-500.0,0.00024273,2]
[341972261,1731339045206,-500.0,0.00024273,2]
[341972262,1731339045220,-500.0,0.00024273,2]
[341972263,1731339045229,-308.55350682,0.00024273,2]
[341972264,1731339045238,-500.0,0.00024273,2]
[341972265,1731339045248,-500.0,0.00024273,2]
[341972266,1731339045258,-500.0,0.00024273,2]
[341972267,1731339045267,-500.0,0.00024273,2]
[341972268,1731339045276,-500.0,0.00024273,2]
[341972269,1731339045286,-500.0,0.00024273,2]
[341972270,1731339045295,-500.0,0.00024273,2]
[341972271,1731339045304,-500.0,0.00024273,2]
[341972272,1731339045313,-500.0,0.00024273,2]
[341972273,1731339045323,-500.0,0.00024273,2]
[341972274,1731339045332,-4066.65,0.00024273,2]
[341972275,1731339045341,-1174.38,0.00024273,2]
[341972276,1731339045350,-504.25,0.00024273,2]
[341972277,1731339045360,-500.0,0.00024273,2]
[341972278,1731339045369,-500.0,0.00024273,2]
[341972279,1731339045379,-500.0,0.00024273,2]
[341972280,1731339045389,-500.0,0.00024273,2]
[341972281,1731339045399,-500.0,0.00024273,2]
[341972282,1731339045409,-500.0,0.00024273,2]
[341972283,1731339045419,-1399.31,0.00024273,2]
[341972284,1731339045428,-500.0,0.00024273,2]
[341972285,1731339045438,-500.0,0.00024273,2]
[341972286,1731339045448,-790.44,0.00024273,2]
[341972287,1731339045457,-500.0,0.00024273,2]
[341972288,1731339045472,-500.0,0.00024273,2]
[341972289,1731339045482,-500.0,0.00024273,2]
[341972290,1731339045492,-856.44,0.00024273,2]
[341972291,1731339045501,-819.74,0.00024273,2]
[341972292,1731339045511,-828.12,0.00024273,2]
[341972293,1731339045521,-558.27,0.00024273,2]
[341972294,1731339045531,-348.6343358,0.00024273,2]
[341972295,1731339045541,-584.27,0.00024273,2]
[341972296,1731339045552,-500.0,0.00024273,2]
[341972297,1731339045563,-500.0,0.00024273,2]
[341972298,1731339045573,-496.80639159,0.00024273,2]
[341972299,1731339045584,-500.0,0.00024273,2]
[341972300,1731339045594,-500.0,0.00024273,2]
[341972301,1731339045603,-3112.96,0.00024273,2]
[341972302,1731339045613,-500.0,0.00024273,2]
[341972303,1731339045623,-1154.43,0.00024273,2]
[341972304,1731339045633,-1041.94,0.00024273,2]
[341972306,1731339045643,-792.78,0.00024273,2]
[341972308,1731339045653,-500.0,0.00024273,2]
[341972310,1731339045663,-235.71295673,0.00024392,2]
[341972312,1731339045673,-1623.19,0.00024545,2]
[341972314,1731339045684,-1502.5,0.00024545,2]
[341972316,1731339045694,-500.0,0.00024545,2]
[341972318,1731339045704,-500.0,0.00024545,2]
[341972319,1731339045716,-815.08,0.00024545,2]
[341972322,1731339045725,-5161.97,0.00024545,2]
[341972324,1731339045735,-500.0,0.00024546,2]
[341972326,1731339045745,-500.0,0.00024546,2]
[341972328,1731339045754,-500.0,0.00024546,2]
[341972330,1731339045764,-14619.85,0.00024546,2]
[341972331,1731339045774,-643.07,0.00024546,2]
[341972332,1731339045783,-1251.12,0.00024546,2]
[341972333,1731339045794,-593.67,0.00024546,2]
[341972334,1731339045804,-500.0,0.00024546,2]
[341972336,1731339045900,-1766.24,0.00024546,2]
[341972338,1731339045910,-500.0,0.00024546,2]
[341972339,1731339045920,-1206.56,0.00024546,2]
[341972341,1731339045930,-500.0,0.00024546,2]
[341972343,1731339045939,-500.0,0.00024546,2]
[341972345,1731339045948,-690.83,0.00024546,2]
[341972347,1731339045958,-539.98448942,0.00024546,2]
[341972348,1731339045970,-703.65,0.00024546,2]
[341972350,1731339045980,-500.0,0.00024546,2]
[341972351,1731339045989,-488.89939818,0.00024546,2]
[341972352,1731339045999,-500.0,0.00024546,2]
[341972353,1731339046010,-1574.69,0.00024546,2]
[341972354,1731339046020,-500.0,0.00024547,2]
[341972355,1731339046030,-500.0,0.00024547,2]
[341972356,1731339046041,-500.0,0.00024547,2]
[341972357,1731339046051,-500.0,0.00024547,2]
[341972358,1731339046062,-500.0,0.00024547,2]
[341972359,1731339046073,-500.0,0.00024547,2]
[341972360,1731339046082,-500.0,0.00024547,2]
[341972361,1731339046093,-500.0,0.00024547,2]
[341972363,1731339046104,-556.619949,0.00024547,2]
[341972365,1731339046113,-500.0,0.00024547,2]
[341972367,1731339046123,-500.0,0.00024547,2]
[341972369,1731339046133,-500.0,0.00024547,2]
[341972370,1731339046143,-276.99672157,0.00024547,2]
[341972371,1731339046152,-500.0,0.00024547,2]
[341972372,1731339046162,-500.0,0.00024547,2]
[341972374,1731339046173,-500.0,0.00024547,2]
[341972376,1731339046182,-500.0,0.00024547,2]
[341972378,1731339046192,-500.0,0.00024547,2]
[341972379,1731339046202,-500.0,0.00024547,2]
[341972380,1731339046214,-500.0,0.00024547,2]
[341972381,1731339046224,-4066.65,0.00024547,2]
[341972382,1731339046234,-1174.38,0.00024547,2]
[341972383,1731339046245,-504.25,0.00024547,2]
[341972384,1731339046255,-550.64214642,0.00024547,2]
[341972385,1731339046265,-210.91033445,0.00024547,2]
[341972386,1731339046275,-500.0,0.00024547,2]
[341972387,1731339046284,-215.15546025,0.00024547,2]
[341972388,1731339046294,-500.0,0.00024547,2]
[341972389,1731339046304,-500.0,0.00024547,2]
[341972391,1731339046314,-1399.31,0.00024547,2]
[341972393,1731339046324,-500.0,0.00024547,2]
[341972394,1731339046333,-500.0,0.00024547,2]
[341972396,1731339046343,-790.44,0.00024547,2]
[341972397,1731339046353,-500.0,0.00024547,2]
[341972398,1731339046363,-500.0,0.00024547,2]
[341972399,1731339046373,-500.0,0.00024547,2]
[341972400,1731339046385,-856.44,0.00024547,2]
[341972401,1731339046395,-819.74,0.00024547,2]
[341972402,1731339046406,-828.12,0.00024547,2]
[341972403,1731339046415,-558.27,0.00024547,2]
[341972404,1731339046426,-584.27,0.00024547,2]
[341972405,1731339046437,-500.0,0.00024547,2]
[341972406,1731339046448,-500.0,0.00024547,2]
[341972407,1731339046459,-500.0,0.00024547,2]
[341972408,1731339046476,-500.0,0.00024547,2]
[341972409,1731339046486,-3112.96,0.00024547,2]
[341972410,1731339046496,-500.0,0.00024547,2]
[341972411,1731339046508,-1154.43,0.00024547,2]
[341972412,1731339046521,-1041.94,0.00024547,2]
[341972413,1731339046532,-792.78,0.00024547,2]
[341972414,1731339046543,-500.0,0.00024547,2]
[341972415,1731339046555,-500.0,0.0002458,2]
[341972416,1731339046568,-500.0,0.0002458,2]
[341972417,1731339046579,-500.0,0.0002458,2]
[341972418,1731339046591,-4394.479662,0.000246,2]
[341972419,1731339046601,-235.71295673,0.00024626,2]
[341972420,1731339046611,-500.0,0.00024645,2]
[341972421,1731339046621,-500.0,0.00024645,2]
[341972422,1731339046632,-500.0,0.00024645,2]
[341972423,1731339046642,-500.0,0.00024645,2]
[341972424,1731339046652,-500.0,0.00024645,2]
[341972425,1731339046663,-201.79038729,0.00024645,2]
[341972426,1731339046673,-500.0,0.00024645,2]
[341972427,1731339046683,-500.0,0.00024645,2]
[341972428,1731339046694,-500.0,0.00024645,2]
[341972429,1731339046704,-486.25144398,0.00024645,2]
[341972430,1731339046718,-500.0,0.00024645,2]
[341972431,1731339046729,-500.0,0.00024645,2]
[341972432,1731339046739,-500.0,0.00024645,2]
[341972433,1731339046749,-500.0,0.00024645,2]
[341972434,1731339046758,-500.0,0.00024645,2]
[341972435,1731339046768,-500.0,0.00024645,2]
[341972436,1731339046779,-500.0,0.00024645,2]
[341972437,1731339046789,-500.0,0.00024645,2]
[341972438,1731339046800,-500.0,0.00024645,2]